bitfinex/quotes_ETHUSD_20251011
["timestamp","ask_amount","ask_price","bid_price","bid_amount"]
[1760211260923,0.4469,3758.3,3757.9,2.66105907]
[1760211261083,0.4469,3758.2,3756.8,1.92]
[1760211261264,0.4469,3758.2,3757.9,2.66103575]
[1760211261465,0.4469,3758.1,3758.0,2.66098988]
[1760211261701,0.4469,3758.1,3757.8,2.66106904]
[1760211262004,2.88807679,3757.9,3757.1,2.66156246]
[1760211262295,2.88807679,3757.9,3755.4,0.2862]
[1760211262296,0.4469,3757.8,3755.4,0.2862]
[1760211262498,2.66135455,3757.5,3755.5,2.66276128]
[1760211262678,0.4469,3757.4,3756.8,2.66178461]
[1760211262866,0.4469,3757.4,3755.7,2.66261948]
[1760211262867,0.4469,3757.4,3756.9,2.66174563]
[1760211263068,3.10844358,3757.3,3755.8,1.92]
[1760211263268,3.1084612,3757.2,3756.4,2.66205606]
[1760211263496,0.4469,3757.2,3756.8,2.66182273]
[1760211263696,0.227,3757.9,3755.8,3.12074406]
[1760211263895,2.88806573,3757.9,3757.0,2.66167901]
[1760211264103,0.4469,3757.8,3755.8,0.45826195]
[1760211264303,0.4469,3757.8,3757.1,2.66158418]
[1760211264679,0.4469,3757.8,3756.9,2.6617638]
[1760211264680,0.4469,3757.8,3757.0,0.02661698]
[1760211264875,0.4469,3758.4,3757.8,2.66108351]
[1760211265081,0.4469,3758.4,3756.6,2.66198157]
[1760211265082,0.4469,3758.4,3757.6,2.6612591]
[1760211265301,0.4469,3758.4,3757.1,2.66160238]
[1760211265302,0.4469,3758.4,3756.5,0.2862]
[1760211265511,0.4469,3758.3,3757.6,2.66123778]
[1760211265670,0.4469,3758.3,3756.6,0.28398]
[1760211265671,0.932,3758.5,3757.0,0.2862]
[1760211265870,0.932,3758.5,3758.3,2.66073484]
[1760211266066,1.3789,3758.5,3758.4,2.66070668]
[1760211266314,0.932,3758.5,3754.8,2.36360782]
[1760211266525,0.932,3758.5,3752.8,0.13900329]
[1760211266526,20.17998609,3754.9,3752.8,0.13900329]
[1760211266671,0.6336,3754.3,3752.8,0.13900329]
[1760211266870,5.25981229,3754.8,3752.3,0.2882]
[1760211266871,0.4735106,3754.2,3752.3,0.2882]
[1760211267108,0.0266106,3754.2,3752.3,0.2882]
[1760211267310,0.0266106,3754.6,3752.5,2.66489007]
[1760211267517,0.932,3754.8,3752.6,0.02664819]
[1760211267806,0.0266106,3755.3,3755.0,0.002]
[1760211268005,3.10988276,3755.2,3755.0,0.002]
[1760211268209,0.0266106,3755.1,3755.0,0.002]
[1760211269106,0.4469,3755.1,3755.0,0.002]
[1760211270114,0.6336,3755.0,3751.7,0.2902]
[1760211270320,3.29685769,3754.8,3751.7,2.2102]
[1760211270612,2.5536,3751.6,3748.4,2.66775635]
[1760211270842,2.5536,3751.6,3748.0,1.45862921]
[1760211270843,3.29943735,3751.2,3749.4,2.66708546]
[1760211271110,3.29943735,3751.2,3748.0,1.45862921]
[1760211271111,2.66602682,3750.9,3749.2,2.66722468]
[1760211271314,2.66653661,3750.2,3748.6,2.66763012]
[1760211271492,0.4686106,3750.1,3748.3,2.66785185]
[1760211271809,1.1022106,3750.1,3748.2,2.66793753]
[1760211271988,1.1022106,3750.1,3748.2,2.66788264]
[1760211272186,23.20219669,3750.1,3747.6,2.66833349]
[1760211272508,23.20219669,3750.1,3748.2,2.66792464]
[1760211272509,23.17558609,3750.1,3748.2,2.66792464]
[1760211272685,23.17558609,3750.1,3747.7,2.6682554]
[1760211272879,23.17558609,3750.1,3746.9,0.2926]
[1760211273188,21.25558609,3750.1,3747.6,1.92]
[1760211273509,1.0756,3750.1,3748.2,2.66792032]
[1760211273728,3.0222106,3750.1,3746.8,1.39665308]
[1760211273935,0.00357237,3749.9,3745.8,1.372284]
[1760211274083,0.6336,3749.7,3745.9,0.6968001]
[1760211274283,0.0266106,3749.6,3746.0,1.67687764]
[1760211274478,0.0266106,3749.6,3746.1,2.2126]
[1760211274707,0.0266106,3749.6,3744.9,0.22800787]
[1760211274708,0.6336,3749.0,3745.6,0.2926]
[1760211274902,0.6336,3749.0,3745.6,0.26929727]
[1760211274903,0.4686106,3748.9,3745.6,0.26929727]
[1760211275213,0.4686106,3748.9,3746.0,2.66951414]
[1760211275429,0.4686106,3748.9,3747.8,2.66821834]
[1760211275632,0.4686106,3748.9,3746.7,1.92]
[1760211275828,0.4686106,3748.9,3746.9,2.6688216]
[1760211276137,0.442,3748.8,3747.0,1.92]
[1760211276456,0.47534489,3748.7,3747.0,2.66877337]
[1760211276759,0.47534489,3748.7,3747.1,0.26687734]
[1760211276905,0.47534489,3748.7,3747.0,2.6688017]
[1760211277104,0.47534489,3748.7,3746.9,1.92]
[1760211277105,0.442,3748.6,3746.2,0.2693]
[1760211277331,0.03334667,3748.5,3746.2,0.2693]
[1760211277511,0.03334667,3748.5,3747.5,2.66839864]
[1760211277722,0.442,3748.4,3747.6,2.66836914]
[1760211277925,0.03334845,3748.3,3747.7,2.66828073]
[1760211278129,0.03334845,3748.3,3746.9,1.92]
[1760211278426,0.442,3748.2,3747.0,0.192]
[1760211278626,0.03335023,3748.1,3747.9,2.66815136]
[1760211278830,0.03335023,3748.1,3746.1,2.66944288]
[1760211278831,0.442,3748.0,3746.6,1.92]
[1760211279135,0.442,3748.0,3745.0,2.67016974]
[1760211279136,0.70135201,3747.9,3745.3,0.2693]
[1760211279505,0.03335201,3747.9,3745.4,2.66994179]
[1760211279743,0.442,3748.7,3748.0,2.66808456]
[1760211280043,0.03334578,3748.6,3747.1,1.92]
[1760211280243,0.03334311,3748.9,3747.3,1.92]
[1760211280755,0.03334311,3748.9,3747.2,0.48581017]
[1760211280756,0.933,3749.0,3747.4,0.2693]
[1760211280904,0.033344,3748.8,3747.4,0.2693]
[1760211281235,0.933,3749.0,3748.7,2.66759143]
[1760211281436,0.033336,3749.7,3748.8,0.54690814]
[1760211281639,0.03332977,3750.4,3750.3,2.66645335]
[1760211281838,1.376,3751.1,3749.2,2.66723567]
[1760211281839,0.03332444,3751.0,3749.3,1.92]
[1760211282037,0.03332444,3751.0,3749.5,2.66702226]
[1760211282338,0.03332444,3751.0,3750.5,2.66630066]
[1760211282525,0.03332444,3751.0,3749.0,1.92]
[1760211282526,0.4611,3750.9,3749.0,1.92]
[1760211282724,0.49442622,3750.8,3749.2,5.33447134]
[1760211282902,0.49442622,3750.8,3749.1,0.192]
[1760211283107,0.49442622,3750.8,3750.2,2.66650036]
[1760211283307,0.49442622,3750.8,3749.4,2.66706895]
[1760211283308,0.03332444,3751.0,3749.6,2.66695114]
[1760211283536,0.934,3751.1,3751.0,2.66595574]
[1760211285454,0.934,3751.1,3750.9,2.66602225]
[1760211285608,0.4611,3751.0,3749.6,0.002]
[1760211285814,0.03332533,3750.9,3749.6,0.48784342]
[1760211286119,0.934,3751.1,3751.0,2.66595574]
[1760211286752,0.934,3751.1,3750.9,2.66599518]
[1760211286959,0.934,3751.1,3751.0,2.66595574]
[1760211287255,15.324,3758.4,3751.1,2.66588467]
[1760211287256,0.03331734,3751.8,3751.1,2.66588467]
[1760211287552,0.4611,3752.5,3751.1,2.66588467]
[1760211287553,0.03331201,3752.4,3751.8,2.6653769]
[1760211288013,0.03331201,3752.4,3751.9,2.66531235]
[1760211288212,0.03331201,3752.4,3751.6,2.6655279]
[1760211288412,0.03331201,3752.4,3750.1,0.2693]
[1760211288413,0.03331201,3752.4,3750.8,2.66606576]
[1760211288730,0.03331201,3752.4,3751.5,2.66560042]
[1760211288926,0.03331201,3752.4,3750.6,2.66622435]
[1760211289128,0.03331201,3752.4,3749.6,3.7883296]
[1760211289129,0.4611,3752.3,3751.1,2.66583819]
[1760211289443,0.03331378,3752.2,3751.2,0.01333035]
[1760211289664,0.03331378,3752.2,3752.1,2.66517416]
[1760211289863,0.2277,3752.6,3752.4,2.66489082]
[1760211289864,0.03331023,3752.6,3752.4,2.66489082]
[1760211290061,0.4611,3752.5,3752.2,2.66509506]
[1760211290263,0.03331201,3752.4,3751.1,0.2693]
[1760211290467,0.03331201,3752.4,3752.3,2.66503211]
[1760211290632,0.49441201,3752.4,3750.2,1.92]
[1760211290832,2.66504616,3752.3,3750.2,1.92]
[1760211291143,2.66530104,3752.0,3751.1,2.66588186]
[1760211291468,0.72211645,3751.9,3751.2,2.6657551]
[1760211291760,0.49441645,3751.9,3751.5,2.66559846]
[1760211292074,0.49441645,3751.9,3751.6,2.66552898]
[1760211292232,0.4611,3751.9,3751.4,2.6656286]
[1760211292432,0.4611,3751.9,3751.5,2.6655993]
[1760211292680,0.03331734,3751.8,3751.6,2.66548646]
[1760211292860,0.03331112,3752.5,3751.7,0.01332857]
[1760211293060,0.03331112,3752.5,3751.4,2.66566312]
[1760211293245,0.03331112,3752.5,3752.3,2.66497299]
[1760211293562,0.932,3752.8,3752.7,2.66474804]
[1760211293765,0.932,3752.8,3751.3,0.2693]
[1760211293965,0.932,3752.8,3751.5,1.92]
[1760211294265,0.03330935,3752.7,3752.6,2.66481905]
[1760211294463,0.03330935,3752.7,3751.7,2.66539806]
[1760211294464,0.03330935,3752.7,3752.4,2.66490436]
[1760211294639,0.932,3752.8,3752.7,2.66474804]
[1760211294830,0.932,3752.8,3751.2,2.66577601]
[1760211295030,0.03330935,3752.7,3751.5,0.3228582]
[1760211295333,0.03330935,3752.7,3752.3,2.66500986]
[1760211295535,0.03330935,3752.7,3752.5,2.66482952]
[1760211295735,0.03330935,3752.7,3751.3,0.2693]
[1760211296066,0.03330935,3752.7,3752.1,2.66516249]
[1760211296365,0.03330935,3752.7,3752.1,2.66517167]
[1760211297062,0.1328,3752.4,3751.8,0.1328]
[1760211297281,0.1328,3752.4,3752.3,2.66503211]
[1760211297836,0.03330935,3752.7,3752.6,2.66481905]
[1760211298067,1.0648,3752.8,3752.7,2.66474804]
[1760211298473,0.1328,3752.8,3752.7,2.67805815]
[1760211298777,0.934,3753.1,3752.9,2.66459097]
[1760211298950,0.934,3753.1,3751.7,2.66542676]
[1760211298951,0.4611,3752.8,3751.3,0.147]
[1760211299272,0.4611,3752.8,3752.3,0.1328]
[1760211299475,0.03330935,3752.7,3752.6,2.66481905]
[1760211299676,0.03330846,3752.8,3752.7,2.66474804]
[1760211299859,0.03330846,3752.8,3752.6,2.66481905]
[1760211299860,0.1328,3752.9,3752.8,2.66467704]
[1760211300056,0.934,3753.1,3753.0,2.66453503]
[1760211300365,0.1328,3752.8,3752.1,0.1328]
[1760211300679,0.1328,3752.8,3751.4,0.1328]
[1760211300680,0.47520935,3752.7,3751.4,0.1328]
[1760211300911,0.47520935,3752.7,3750.7,2.66615906]
[1760211300912,0.1328,3751.4,3750.2,2.66652445]
[1760211301082,0.03332178,3751.3,3750.7,0.1328]
[1760211301248,0.03332178,3751.3,3750.3,0.26665244]
[1760211301442,0.03332178,3751.3,3749.7,0.01334848]
[1760211301643,0.1328,3751.3,3750.8,2.66609552]
[1760211301944,2.66516178,3752.2,3751.3,2.66574254]
[1760211301945,0.1328,3751.9,3751.3,2.66574254]
[1760211302270,0.1328,3751.9,3751.2,2.79860983]
[1760211302471,0.1328,3751.9,3751.2,0.1328]
[1760211302856,0.1328,3752.2,3751.9,2.66531014]
[1760211303054,0.1328,3752.2,3752.1,2.66517416]
[1760211303276,0.001,3752.2,3752.1,2.66517416]
[1760211303449,0.001,3752.2,3752.1,3.3310222]
[1760211303645,0.001,3752.2,3752.1,3.76064296]
[1760211303844,0.001,3752.2,3752.1,3.3310222]
[1760211304561,0.001,3752.2,3752.1,2.79797416]
[1760211304773,0.001,3752.2,3752.1,2.67849492]
[1760211305004,0.934,3753.1,3753.0,2.66453503]
[1760211305207,0.934,3753.1,3753.0,2.93283503]
[1760211305505,0.934,3753.1,3753.0,2.79733503]
[1760211305805,0.934,3753.1,3753.0,3.21073177]
[1760211306020,0.934,3753.1,3753.0,2.79733503]
[1760211306509,0.2268,3754.7,3753.0,2.79733503]
[1760211306510,0.03329338,3754.5,3753.0,0.28160478]
[1760211306675,0.4419,3754.5,3752.4,2.66496109]
[1760211307007,0.03328894,3755.0,3752.6,0.6336]
[1760211307208,0.03328894,3755.0,3754.5,2.66347007]
[1760211307415,0.03328894,3755.0,3754.3,2.66356222]
[1760211307585,0.4419,3754.9,3754.3,2.66356222]
[1760211307781,0.03329072,3754.8,3754.4,2.66352218]
[1760211308007,0.03329072,3754.8,3752.9,2.66460603]
[1760211308008,0.47519072,3754.8,3753.2,1.92]
[1760211308167,3.10528734,3754.7,3753.7,2.66402071]
[1760211308510,0.47519249,3754.6,3752.6,1.92]
[1760211308814,0.4419,3754.5,3751.6,0.2683]
[1760211309098,0.03329426,3754.4,3751.8,1.92]
[1760211309275,0.03329426,3754.4,3751.9,2.93361623]
[1760211309481,2.6639899,3753.8,3752.1,4.58513922]
[1760211309717,0.03329604,3754.2,3752.3,2.66503211]
[1760211309885,0.4419,3754.4,3752.8,1.92]
[1760211310083,0.03329515,3754.3,3752.6,2.6648046]
[1760211310288,0.4419,3755.0,3754.2,2.66368334]
[1760211310623,3.13837871,3754.9,3753.9,2.66388444]
[1760211310768,3.13837871,3754.9,3752.6,0.2683]
[1760211310769,2.66337593,3754.7,3752.6,0.2683]
[1760211310973,0.03329249,3754.6,3753.9,2.6638946]
[1760211311169,0.4419,3754.5,3752.9,1.92]
[1760211311369,0.03329426,3754.4,3753.8,2.66392679]
[1760211311570,0.03329426,3754.4,3750.2,1.31676459]
[1760211311571,0.47519426,3754.4,3752.0,0.2683]
[1760211311771,0.2268,3753.9,3753.2,2.66437274]
[1760211311975,0.4419,3753.8,3753.3,2.66430024]
[1760211312202,0.47520047,3753.7,3753.3,2.66430024]
[1760211312691,2.66355109,3754.4,3753.6,2.66410912]
[1760211312692,0.03329692,3754.1,3753.6,2.66410912]
[1760211312893,0.03329692,3754.1,3752.7,2.66474804]
[1760211313086,0.03329692,3754.1,3752.6,0.2683]
[1760211313087,0.4419,3754.7,3753.8,2.66390424]
[1760211313286,0.934,3755.4,3752.8,0.2933048]
[1760211313287,0.2268,3753.9,3752.8,0.2933048]
[1760211313494,0.2268,3753.9,3753.2,2.66436561]
[1760211313694,0.03329958,3753.8,3753.3,2.66429868]
[1760211313897,2.66381911,3754.1,3752.8,0.2933048]
[1760211313898,0.03329426,3754.4,3753.4,0.01329626]
[1760211314084,0.03329426,3754.4,3754.0,2.66382218]
[1760211314280,0.03329426,3754.4,3754.1,2.66373877]
[1760211314635,0.934,3755.1,3754.4,2.66347336]
[1760211314636,0.03328894,3755.0,3754.4,2.66347336]
[1760211314927,0.03328894,3755.0,3754.5,2.66340213]
[1760211315231,0.03328894,3755.0,3753.6,2.66410912]
[1760211315528,0.03328894,3755.0,3754.7,2.66332521]
[1760211316033,0.4419,3754.9,3753.8,2.66396717]
[1760211316326,0.03329072,3754.8,3753.9,0.01328313]
[1760211316478,0.934,3755.1,3753.2,0.2683]
[1760211316479,0.1328,3754.9,3754.4,2.66351649]
[1760211316682,0.1328,3754.9,3754.3,2.79640809]
[1760211316894,0.1328,3754.9,3754.3,0.1328]
[1760211317384,0.1328,3754.9,3754.5,2.66346231]
[1760211317712,0.1328,3754.9,3754.7,2.66331828]
[1760211317912,0.1328,3754.9,3754.5,2.66345221]
[1760211318118,0.1328,3754.9,3754.6,2.66339571]
[1760211318321,0.4419,3754.8,3754.3,0.1328]
[1760211318614,0.1328,3754.7,3754.4,2.6635261]
[1760211318817,1.0668,3755.1,3754.5,0.14607817]
[1760211318982,0.03328894,3755.0,3754.5,2.79624477]
[1760211319184,0.03328894,3755.0,3754.8,2.66319339]
[1760211319408,1.0668,3755.1,3754.9,2.66318676]
[1760211319607,0.934,3755.1,3755.0,2.66311584]
[1760211319812,0.934,3755.1,3755.0,2.79591584]
[1760211320118,0.934,3755.1,3755.0,3.3550954]
[1760211320306,0.4419,3756.4,3755.0,3.3550954]
[1760211320307,0.03327654,3756.4,3755.0,0.67871026]
[1760211320618,2.66237524,3756.1,3755.2,2.66297072]
[1760211320790,2.66237524,3756.1,3754.1,2.66374263]
[1760211320791,0.47518008,3756.0,3755.3,2.66286146]
[1760211320987,0.6687,3755.9,3753.5,2.66412819]
[1760211321315,2.66291259,3755.3,3754.5,2.66345808]
[1760211321485,0.03328717,3755.2,3755.1,2.66304492]
[1760211321685,0.03328451,3755.5,3755.0,2.66311214]
[1760211321881,0.03328362,3755.6,3755.4,2.66283218]
[1760211322092,0.2268,3755.9,3753.4,1.92]
[1760211322093,0.4419,3755.5,3753.4,1.92]
[1760211322315,0.4419,3755.5,3752.8,0.2933048]
[1760211322316,0.001,3755.1,3753.5,0.45842741]
[1760211322514,0.001,3755.1,3755.0,2.66311584]
[1760211324908,0.001,3755.1,3753.5,0.2683]
[1760211325229,0.001,3755.1,3754.6,2.66339437]
[1760211325230,0.4419,3755.0,3754.6,2.66339437]
[1760211325429,0.4419,3754.9,3752.8,0.2683]
[1760211325604,0.47518983,3754.9,3754.4,2.66351761]
[1760211325933,0.47518983,3754.9,3752.9,2.66460603]
[1760211325934,0.47518983,3754.9,3754.5,2.66346745]
[1760211326227,0.001,3755.1,3754.8,2.66325769]
[1760211326427,0.001,3755.1,3755.0,2.66311584]
[1760211326605,0.001,3755.1,3755.0,3.03430044]
[1760211327834,0.001,3755.1,3755.0,5.22260044]
[1760211328000,0.001,3755.1,3755.0,5.85620044]
[1760211329712,0.03426502,3757.7,3757.6,2.66127315]
[1760211329914,0.001,3757.7,3757.6,2.66127315]
[1760211330401,0.001,3757.7,3757.6,2.79407315]
[1760211331002,0.001,3757.7,3757.6,3.07459638]
[1760211331232,0.001,3757.7,3757.6,3.06137315]
[1760211331697,0.001,3757.7,3757.6,3.63364764]
[1760211332097,0.001,3757.7,3757.6,6.18724764]
[1760211332530,0.001,3757.7,3757.6,5.55364764]
[1760211332832,0.001,3757.7,3757.6,4.71407315]
[1760211333538,0.001,3757.7,3757.5,2.66132787]
[1760211333704,0.001,3757.7,3756.4,2.6621233]
[1760211333705,0.001,3757.7,3757.6,2.66127315]
[1760211333905,0.001,3757.7,3756.2,0.2673]
[1760211334208,0.001,3757.7,3757.4,2.66141233]
[1760211334406,0.001,3757.7,3756.3,2.66219418]
[1760211334600,0.001,3757.7,3757.6,2.66127315]
[1760211336838,0.001,3757.7,3757.6,2.92857315]
[1760211337341,0.001,3757.7,3757.6,5.48217315]
[1760211337926,1e-08,3758.5,3758.4,5.21430668]
[1760211338128,1e-08,3758.5,3758.4,6.00181772]
[1760211338467,1e-08,3758.5,3758.4,6.26911772]
[1760211339729,1e-08,3758.5,3758.4,5.48160668]
[1760211341362,1e-08,3758.5,3758.4,4.84800668]
[1760211341860,1e-08,3758.5,3758.4,5.48160668]
[1760211342753,1e-08,3758.5,3758.4,4.84800668]
[1760211343151,1e-08,3758.5,3758.4,5.48160668]
[1760211343320,1e-08,3758.5,3758.4,6.31054772]
[1760211343629,1e-08,3758.5,3758.4,6.44334772]
[1760211344265,0.933,3760.8,3759.0,3.29388198]
[1760211344569,0.933,3760.8,3760.7,2.65907942]
[1760211344779,0.0332323,3761.4,3760.6,0.01316874]
[1760211345075,0.4423,3762.1,3761.4,2.65858456]
[1760211345232,0.033227,3762.0,3761.2,2.65868858]
[1760211345428,0.2281,3761.9,3760.2,3.293033]
[1760211345729,0.03322789,3761.9,3760.3,0.8153333]
[1760211346038,0.03322789,3761.9,3760.4,2.65929156]
[1760211346240,0.03322789,3761.9,3761.4,2.65858456]
[1760211346433,0.03322789,3761.9,3761.0,2.65885653]
[1760211346771,0.03322789,3761.9,3761.3,2.65863474]
[1760211346951,0.03322789,3761.9,3761.4,2.65858456]
[1760211347143,0.03322435,3762.3,3761.4,2.65858456]
[1760211347478,0.03322435,3762.3,3760.7,0.2673]
[1760211347832,0.4423,3762.6,3760.9,1.92]
[1760211348138,3.10009707,3762.6,3761.8,2.65829307]
[1760211348350,0.03322259,3762.5,3760.7,0.2673]
[1760211348557,0.03322259,3762.5,3758.7,2.66042444]
[1760211348558,2.65811108,3762.1,3760.9,2.6589251]
[1760211348751,0.033227,3762.0,3761.3,2.65864049]
[1760211348959,0.033227,3762.0,3760.2,0.6336]
[1760211349334,0.033227,3762.0,3761.4,2.65853239]
[1760211349536,0.03322435,3762.3,3760.8,2.65900872]
[1760211349782,0.03322435,3762.3,3762.0,2.65815957]
[1760211349957,0.03322082,3762.7,3761.0,2.65886732]
[1760211350293,0.001,3763.2,3761.3,0.6336]
[1760211350464,0.001,3763.2,3762.4,2.65785377]
[1760211350664,2.65749762,3763.0,3761.1,0.9009]
[1760211350870,2.65749762,3763.0,3760.8,2.6589546]
[1760211350871,0.47551905,3762.9,3760.9,1.92]
[1760211351174,2.65765767,3762.8,3761.9,2.65821635]
[1760211351486,0.03322082,3762.7,3762.0,2.65815427]
[1760211351692,0.03322082,3762.7,3761.9,2.65821826]
[1760211351867,2.6908963,3762.7,3761.9,2.65822513]
[1760211352065,0.03322082,3762.7,3762.4,2.65786266]
[1760211352395,2.6583421,3763.2,3762.4,2.65786266]
[1760211352396,0.03321994,3762.8,3762.4,2.65782711]
[1760211352595,0.001,3763.2,3762.5,2.65779021]
[1760211352596,0.03421641,3763.2,3762.5,2.65779021]
[1760211352798,0.03421641,3763.2,3761.4,0.2673]
[1760211352960,0.001,3763.2,3763.1,2.65738354]
[1760211353161,0.001,3763.2,3763.0,2.65744849]
[1760211353367,0.001,3763.2,3761.9,0.3876]
[1760211353368,0.001,3763.2,3763.1,2.65738354]
[1760211353776,0.4433,3763.2,3762.0,1.92]
[1760211353983,0.4433,3763.2,3762.1,4.57808989]
[1760211354284,0.001,3763.2,3762.8,0.1328]
[1760211354689,0.001,3763.2,3762.9,2.65749613]
[1760211355393,0.001,3763.2,3762.8,0.14592846]
[1760211355558,0.001,3763.2,3763.1,2.65738354]
[1760211355759,0.001,3763.2,3763.1,2.79018354]
[1760211357294,0.001,3763.2,3763.0,2.65744965]
[1760211357799,0.4423,3763.1,3762.6,0.1328]
[1760211357964,0.16601817,3763.0,3762.5,2.6578073]
[1760211358169,0.001,3763.2,3762.6,0.1328]
[1760211358374,0.03421641,3763.2,3762.8,2.6575728]
[1760211358670,0.03421641,3763.2,3762.6,0.1328]
[1760211358870,0.001,3763.2,3763.1,2.65738354]
[1760211359295,0.001,3763.2,3762.8,0.1328]
[1760211359665,0.001,3763.2,3762.8,2.79038517]
[1760211359990,0.001,3763.2,3762.8,0.1328]
[1760211360192,0.437,3763.1,3761.8,2.65824733]
[1760211360409,0.03321817,3763.0,3762.9,2.65752478]
[1760211360576,0.001,3763.2,3763.1,2.65738354]
[1760211361480,0.001,3763.2,3763.1,0.1328]
[1760211361677,0.438,3763.2,3762.7,0.1328]
[1760211361881,0.438,3763.2,3762.7,2.79046167]
[1760211361882,0.47021729,3763.1,3762.7,2.79046167]
[1760211362197,0.437,3763.1,3762.9,2.65747288]
[1760211362364,0.03421641,3763.2,3763.0,2.65745415]
[1760211362569,0.001,3763.2,3763.1,2.65738354]
[1760211363603,0.438,3763.2,3762.5,2.65780609]
[1760211363898,0.438,3763.2,3762.7,0.1328]
[1760211364098,0.03321729,3763.1,3762.8,2.65758206]
[1760211364308,0.03321729,3763.1,3762.7,0.1328]
[1760211364504,0.437,3763.0,3762.3,2.65794097]
[1760211364706,0.03321905,3762.9,3762.5,2.6578073]
[1760211364929,0.03321905,3762.9,3761.6,2.65844321]
[1760211364930,0.47021905,3762.9,3761.6,2.65844321]
[1760211365073,2.65771724,3762.7,3762.0,2.65814561]
[1760211365270,0.0332217,3762.6,3761.5,0.01514292]
[1760211365466,0.0332217,3762.6,3762.0,2.65813455]
[1760211365671,0.0332217,3762.6,3762.1,2.65806046]
[1760211365904,0.437,3762.5,3761.5,0.002]
[1760211366507,0.437,3762.5,3762.0,2.65814461]
[1760211366678,0.47022347,3762.4,3761.5,0.002]
[1760211367000,0.03322347,3762.4,3761.5,2.66047847]
[1760211367196,0.03322082,3762.7,3762.0,2.65810645]
[1760211367512,0.03322082,3762.7,3762.1,2.65807221]
[1760211367675,0.03322082,3762.7,3762.1,2.65808926]
[1760211367875,0.03322082,3762.7,3762.2,2.65800223]
[1760211368313,0.47022082,3762.7,3762.1,2.65808691]
[1760211368614,0.03322082,3762.7,3762.5,2.65779894]
[1760211368773,0.03421641,3763.2,3762.5,2.65779894]
[1760211368973,0.03421641,3763.2,3761.7,2.65837254]
[1760211369169,0.03421641,3763.2,3762.8,2.65753517]
[1760211369605,0.03421641,3763.2,3761.8,0.53333725]
[1760211369806,0.438,3763.2,3762.6,2.65767989]
[1760211370321,0.03321729,3763.1,3761.6,2.65844321]
[1760211370474,2.6575747,3762.9,3762.2,2.65797399]
[1760211370676,0.03321994,3762.8,3762.3,2.65794808]
[1760211370909,0.437,3762.7,3761.8,2.65830187]
[1760211371092,0.0332217,3762.6,3762.0,2.65810997]
[1760211371294,0.0332217,3762.6,3761.9,0.01314223]
[1760211371494,0.437,3763.0,3762.3,2.65789199]
[1760211371704,0.03321905,3762.9,3762.3,2.65789199]
[1760211371880,0.03321905,3762.9,3762.2,2.65799968]
[1760211372082,0.03321905,3762.9,3762.4,2.65787064]
[1760211372326,0.03321905,3762.9,3762.5,2.6578073]
[1760211372476,0.03421641,3763.2,3762.4,0.01313481]
[1760211372678,0.001,3763.2,3762.8,2.65753415]
[1760211372877,0.001,3763.2,3762.1,0.01313444]
[1760211373103,0.001,3763.2,3763.0,2.65740694]
[1760211373480,0.001,3763.2,3763.1,2.93781024]
[1760211373911,0.001,3763.2,3763.1,2.92468354]
[1760211374206,0.001,3763.2,3763.1,5.21098354]
[1760211374527,0.001,3764.0,3763.9,2.65681872]
[1760211374976,0.001,3764.0,3763.9,0.1328]
[1760211375376,0.001,3764.0,3762.6,0.2673]
[1760211375601,0.001,3764.0,3763.6,2.65702164]
[1760211375788,0.001,3764.0,3763.5,0.1328]
[1760211376015,0.001,3764.0,3763.7,2.65689672]
[1760211376913,0.001,3764.0,3763.8,2.65687605]
[1760211377216,0.001,3764.0,3763.9,2.78961872]
[1760211377512,0.001,3764.0,3763.9,3.05691872]
[1760211378314,0.001,3764.0,3763.9,3.69051872]
[1760211378616,0.001,3764.0,3763.9,3.55771872]
[1760211379282,0.001,3764.0,3763.9,5.47771872]
[1760211379484,0.001,3764.0,3763.9,6.29118335]
[1760211382284,0.001,3764.0,3763.9,5.47771872]
[1760211382490,0.001,3764.0,3763.9,4.84411872]
[1760211382886,0.001,3764.0,3763.9,5.47771872]
[1760211383114,0.001,3764.0,3763.9,4.57681872]
[1760211383315,0.001,3764.0,3763.9,2.65681872]
[1760211384007,0.001,3764.0,3763.9,2.9372306]
[1760211384210,0.001,3764.0,3763.9,4.30913312]
[1760211385394,0.001,3764.0,3763.9,4.322245]
[1760211385805,0.001,3764.0,3763.9,4.30913312]
[1760211386322,1e-08,3765.0,3764.9,2.65611304]
[1760211386508,1e-08,3765.0,3764.9,5.74262434]
[1760211387009,1e-08,3765.0,3764.9,5.47701304]
[1760211387739,1e-08,3765.0,3764.9,5.20971304]
[1760211388021,1e-08,3765.0,3764.9,4.84341304]
[1760211388418,1e-08,3765.0,3764.9,5.47701304]
[1760211388598,1e-08,3765.0,3764.9,4.97621304]
[1760211388788,1e-08,3765.0,3764.9,4.70891304]
[1760211388992,1e-08,3765.0,3764.9,6.34632514]
[1760211390124,1e-08,3765.0,3764.9,4.70891304]
[1760211390500,1e-08,3765.0,3764.1,1.92]
[1760211390700,1e-08,3765.0,3763.5,0.2673]
[1760211390701,0.4531,3764.9,3763.5,0.2673]
[1760211390891,1e-08,3765.0,3763.5,0.2673]
[1760211391219,1e-08,3765.0,3764.6,2.65626862]
[1760211391519,0.45310001,3765.0,3761.9,20.22658231]
[1760211391725,0.03320141,3764.9,3763.2,0.26573463]
[1760211392025,2.65618359,3764.8,3763.0,0.2673]
[1760211392235,0.03320317,3764.7,3763.9,2.6567519]
[1760211392397,0.03320317,3764.7,3763.0,0.2673]
[1760211392595,0.4531,3764.6,3763.9,2.65680608]
[1760211392823,0.03320494,3764.5,3764.1,2.65662942]
[1760211393402,0.4531,3764.4,3763.8,1.92]
[1760211393738,0.0332067,3764.3,3764.2,2.65660698]
[1760211393906,0.03320141,3764.9,3764.1,2.65666402]
[1760211394225,0.03320141,3764.9,3763.6,0.002]
[1760211394226,0.03320141,3764.9,3764.2,2.65659699]
[1760211394422,0.03320141,3764.9,3763.6,0.002]
[1760211394626,0.00100001,3765.0,3764.8,2.65618359]
[1760211394853,0.00100001,3765.0,3764.0,2.65668487]
[1760211395003,0.00100001,3765.0,3764.9,2.65611304]
[1760211395431,0.00100001,3765.0,3764.9,2.66920727]
[1760211395609,0.00100001,3765.0,3764.9,2.65611304]
[1760211396835,0.00100001,3765.0,3764.9,2.66920727]